[Event "*** Titled Tuesday Blitz"]
[Site "Chess.com"]
[Date "2021.04.27"]
[Round "4"]
[White "dosto07"]
[Black "KonstantinB_1983"]
[Result "0-1"]
[WhiteElo "2308"]
[BlackElo "2505"]
[TimeControl "180+1"]
[EndTime "10:40:12 PDT"]
[Termination "KonstantinB_1983 won on time"]

1. e4 {[%clk 0:03:00.9]} 1... c6 {[%clk 0:02:59.2]} 2. d4 {[%clk 0:03:00]} 2...
d5 {[%clk 0:02:59.5]} 3. Nc3 {[%clk 0:03:00.5]} 3... dxe4 {[%clk 0:02:59.2]} 4.
Nxe4 {[%clk 0:03:01.4]} 4... Nf6 {[%clk 0:02:59.1]} 5. Nxf6+ {[%clk 0:03:01.2]}
5... exf6 {[%clk 0:03:00]} 6. c3 {[%clk 0:03:01.3]} 6... Bd6 {[%clk 0:02:59.9]}
7. Bd3 {[%clk 0:03:01.5]} 7... O-O {[%clk 0:02:59.5]} 8. Ne2 {[%clk 0:03:02.1]}
8... Qc7 {[%clk 0:02:58.2]} 9. Qc2 {[%clk 0:02:56.8]} 9... h5 {[%clk 0:02:56.6]}
10. h3 {[%clk 0:02:56.6]} 10... Nd7 {[%clk 0:02:52.7]} 11. Be3 {[%clk
0:02:54.6]} 11... Re8 {[%clk 0:02:47.5]} 12. O-O-O {[%clk 0:02:54.1]} 12... h4
{[%clk 0:02:42.9]} 13. Kb1 {[%clk 0:02:27.6]} 13... Nf8 {[%clk 0:02:40.4]} 14.
c4 {[%clk 0:02:26.3]} 14... c5 {[%clk 0:02:38.8]} 15. Nc3 {[%clk 0:02:20.2]}
15... Bd7 {[%clk 0:02:30.8]} 16. Nd5 {[%clk 0:02:09.6]} 16... Qa5 {[%clk
0:02:24.2]} 17. dxc5 {[%clk 0:02:03.3]} 17... Bxc5 {[%clk 0:02:22.9]} 18. Bd2
{[%clk 0:01:53.8]} 18... Qd8 {[%clk 0:02:20.3]} 19. Bc3 {[%clk 0:01:50.6]} 19...
Re6 {[%clk 0:02:08.1]} 20. Bf5 {[%clk 0:01:44.5]} 20... Rd6 {[%clk 0:02:05.3]}
21. b4 {[%clk 0:01:34.2]} 21... Bb6 {[%clk 0:01:52.1]} 22. c5 {[%clk 0:01:31.5]}
22... Ba4 {[%clk 0:01:30.8]} 23. Qxa4 {[%clk 0:01:20.6]} 23... Rxd5 {[%clk
0:01:28.7]} 24. cxb6 {[%clk 0:01:13.5]} 24... Rxd1+ {[%clk 0:01:27.1]} 25. Rxd1
{[%clk 0:01:12.2]} 25... Qxb6 {[%clk 0:01:28]} 26. Bd4 {[%clk 0:01:07.2]} 26...
Qd6 {[%clk 0:01:24.3]} 27. Bb2 {[%clk 0:00:56.1]} 27... Qf4 {[%clk 0:01:23.5]}
28. Qc2 {[%clk 0:00:53.9]} 28... Qxb4 {[%clk 0:01:21.8]} 29. a3 {[%clk
0:00:48.5]} 29... Qb5 {[%clk 0:01:20]} 30. Qd3 {[%clk 0:00:45.5]} 30... Qa4
{[%clk 0:01:16.7]} 31. Rc1 {[%clk 0:00:37.3]} 31... Re8 {[%clk 0:01:11.1]} 32.
Ka2 {[%clk 0:00:28.1]} 32... Qf4 {[%clk 0:01:07.5]} 33. f3 {[%clk 0:00:24.4]}
33... Qg3 {[%clk 0:00:24.4]} 34. Rc2 {[%clk 0:00:20.2]} 34... Qg5 {[%clk
0:00:22.9]} 35. Be4 {[%clk 0:00:17.3]} 35... b6 {[%clk 0:00:22.5]} 36. Bd5
{[%clk 0:00:16.9]} 36... Re7 {[%clk 0:00:21.2]} 37. Rc8 {[%clk 0:00:15.8]} 37...
Rd7 {[%clk 0:00:20.7]} 38. Bc3 {[%clk 0:00:07.1]} 38... Qxd5+ {[%clk 0:00:20.2]}
39. Qxd5 {[%clk 0:00:06.9]} 39... Rxd5 {[%clk 0:00:20.1]} 40. Bb4 {[%clk
0:00:07.8]} 40... Kh7 {[%clk 0:00:19.7]} 41. Rxf8 {[%clk 0:00:06.6]} 41... Kg6
{[%clk 0:00:19]} 42. Ra8 {[%clk 0:00:05.5]} 42... a5 {[%clk 0:00:19.1]} 43. Bc3
{[%clk 0:00:05.5]} 43... Rg5 {[%clk 0:00:19.2]} 44. Rb8 {[%clk 0:00:04]} 44...
Rxg2+ {[%clk 0:00:19.2]} 45. Kb3 {[%clk 0:00:04.3]} 45... Rf2 {[%clk 0:00:19.4]}
46. Rxb6 {[%clk 0:00:04.2]} 46... Rxf3 {[%clk 0:00:19.7]} 47. Rb5 {[%clk
0:00:04.3]} 47... Rxh3 {[%clk 0:00:19.7]} 48. Rxa5 {[%clk 0:00:04.1]} 48... Rf3
{[%clk 0:00:20]} 49. Ra8 {[%clk 0:00:03.5]} 49... Kh7 {[%clk 0:00:19.1]} 50. Rf8
{[%clk 0:00:03]} 50... h3 {[%clk 0:00:17.7]} 51. Re8 {[%clk 0:00:01.8]} 51... g5
{[%clk 0:00:15.1]} 52. Re1 {[%clk 0:00:02.1]} 52... g4 {[%clk 0:00:14.5]} 53. a4
{[%clk 0:00:02.7]} 53... g3 {[%clk 0:00:14.2]} 54. Kc4 {[%clk 0:00:03.1]} 54...
g2 {[%clk 0:00:13.5]} 55. Bd4 {[%clk 0:00:02.9]} 55... h2 {[%clk 0:00:12.5]} 56.
a5 {[%clk 0:00:02.5]} 56... h1=Q {[%clk 0:00:12.3]} 57. Bg1 {[%clk 0:00:01.3]}
57... Qh4+ {[%clk 0:00:11.3]} 0-1

[Event "*** Titled Tuesday Blitz"]
[Site "Chess.com"]
[Date "2021.04.27"]
[Round "4"]
[White "ckgchess"]
[Black "CM_rui"]
[Result "1-0"]
[WhiteElo "2681"]
[BlackElo "2513"]
[TimeControl "180+1"]
[EndTime "10:40:14 PDT"]
[Termination "ckgchess won by checkmate"]

1. e4 {[%clk 0:03:00.9]} 1... e5 {[%clk 0:03:00.2]} 2. Nf3 {[%clk 0:03:00.8]}
2... Nc6 {[%clk 0:03:00.9]} 3. Bc4 {[%clk 0:03:01.1]} 3... Bc5 {[%clk
0:03:00.8]} 4. c3 {[%clk 0:03:01.6]} 4... Nf6 {[%clk 0:03:01.3]} 5. d4 {[%clk
0:03:02.3]} 5... exd4 {[%clk 0:03:02.2]} 6. cxd4 {[%clk 0:03:03.2]} 6... Bb4+
{[%clk 0:03:02.7]} 7. Nbd2 {[%clk 0:03:03.9]} 7... d5 {[%clk 0:02:58.4]} 8. exd5
{[%clk 0:03:04.8]} 8... Nxd5 {[%clk 0:02:58.7]} 9. O-O {[%clk 0:03:04.6]} 9...
O-O {[%clk 0:02:58.7]} 10. a3 {[%clk 0:03:04.7]} 10... Ba5 {[%clk 0:02:52.8]}
11. Ba2 {[%clk 0:02:56.9]} 11... Bg4 {[%clk 0:02:38.3]} 12. h3 {[%clk
0:02:56.6]} 12... Bh5 {[%clk 0:02:36.5]} 13. Qb3 {[%clk 0:02:51.9]} 13... Nf4
{[%clk 0:02:15.5]} 14. d5 {[%clk 0:02:28.6]} 14... Bxd2 {[%clk 0:01:54.8]} 15.
Bxd2 {[%clk 0:02:12]} 15... Bxf3 {[%clk 0:01:51.4]} 16. Bxf4 {[%clk 0:01:33.6]}
16... Nd4 {[%clk 0:01:51]} 17. Qe3 {[%clk 0:01:31.5]} 17... Ne2+ {[%clk
0:01:37.8]} 18. Kh2 {[%clk 0:01:27.3]} 18... Bh5 {[%clk 0:01:14.4]} 19. Qe5
{[%clk 0:00:45.8]} 19... Nxf4 {[%clk 0:00:54.2]} 20. Qxf4 {[%clk 0:00:46.7]}
20... Bg6 {[%clk 0:00:52.4]} 21. Rac1 {[%clk 0:00:45.2]} 21... Rc8 {[%clk
0:00:52.5]} 22. Rfe1 {[%clk 0:00:41.5]} 22... Qd7 {[%clk 0:00:50.2]} 23. Rc3
{[%clk 0:00:37.9]} 23... h6 {[%clk 0:00:37.4]} 24. Rec1 {[%clk 0:00:36.7]} 24...
c6 {[%clk 0:00:26.4]} 25. dxc6 {[%clk 0:00:37.6]} 25... Rxc6 {[%clk 0:00:25.3]}
26. Rxc6 {[%clk 0:00:37.2]} 26... bxc6 {[%clk 0:00:26.2]} 27. Qg3 {[%clk
0:00:34.1]} 27... Bf5 {[%clk 0:00:20.6]} 28. Qf3 {[%clk 0:00:27.2]} 28... Qd2
{[%clk 0:00:18.5]} 29. Rxc6 {[%clk 0:00:23.5]} 29... Qxb2 {[%clk 0:00:15.8]} 30.
Bc4 {[%clk 0:00:18.4]} 30... Qe5+ {[%clk 0:00:12.9]} 31. Qg3 {[%clk 0:00:19.1]}
31... Qe4 {[%clk 0:00:11.6]} 32. Rc7 {[%clk 0:00:16.7]} 32... Bg6 {[%clk
0:00:11.9]} 33. a4 {[%clk 0:00:11.3]} 33... a5 {[%clk 0:00:11.8]} 34. f3 {[%clk
0:00:11.6]} 34... Qf5 {[%clk 0:00:07.8]} 35. Re7 {[%clk 0:00:11.3]} 35... Kh7
{[%clk 0:00:07.3]} 36. Re5 {[%clk 0:00:11.4]} 36... Qf6 {[%clk 0:00:07.5]} 37.
Rxa5 {[%clk 0:00:11.5]} 37... Qc3 {[%clk 0:00:07.2]} 38. Rc5 {[%clk 0:00:11.1]}
38... Qd4 {[%clk 0:00:06.6]} 39. Rc7 {[%clk 0:00:08.6]} 39... Qb6 {[%clk
0:00:05.9]} 40. Bb5 {[%clk 0:00:05.2]} 40... Qa5 {[%clk 0:00:05.1]} 41. Rc6
{[%clk 0:00:05.2]} 41... Qb4 {[%clk 0:00:05]} 42. Qd6 {[%clk 0:00:05.1]} 42...
Qb2 {[%clk 0:00:01.6]} 43. Qxf8 {[%clk 0:00:03.6]} 43... Qe5+ {[%clk 0:00:02.3]}
44. Kg1 {[%clk 0:00:03.7]} 44... Qe1+ {[%clk 0:00:02.6]} 45. Bf1 {[%clk
0:00:03]} 45... Qe3+ {[%clk 0:00:03.2]} 46. Kh2 {[%clk 0:00:03]} 46... Qf2
{[%clk 0:00:03.8]} 47. Qd6 {[%clk 0:00:03.1]} 47... Qxf1 {[%clk 0:00:04.2]} 48.
Qg3 {[%clk 0:00:03.5]} 48... Qe2 {[%clk 0:00:04.3]} 49. Rc7 {[%clk 0:00:03.8]}
49... Qe8 {[%clk 0:00:04.6]} 50. a5 {[%clk 0:00:04.1]} 50... Qa8 {[%clk
0:00:04.9]} 51. Rc5 {[%clk 0:00:04.4]} 51... Qa6 {[%clk 0:00:05.1]} 52. h4
{[%clk 0:00:04.7]} 52... Qa7 {[%clk 0:00:05.6]} 53. Re5 {[%clk 0:00:05.3]} 53...
Qa6 {[%clk 0:00:06]} 54. h5 {[%clk 0:00:05.9]} 54... Bd3 {[%clk 0:00:06.5]} 55.
Rc5 {[%clk 0:00:06.3]} 55... Bb5 {[%clk 0:00:06.6]} 56. Qe5 {[%clk 0:00:06.5]}
56... Bd7 {[%clk 0:00:05.5]} 57. Qe4+ {[%clk 0:00:06.8]} 57... Kg8 {[%clk
0:00:03.3]} 58. Rd5 {[%clk 0:00:07.2]} 58... Be6 {[%clk 0:00:02.7]} 59. Rd8#
{[%clk 0:00:08.1]} 1-0

[Event "*** Titled Tuesday Blitz"]
[Site "Chess.com"]
[Date "2021.04.27"]
[Round "4"]
[White "klimkoj"]
[Black "karwowskikacper"]
[Result "1-0"]
[WhiteElo "2609"]
[BlackElo "2421"]
[TimeControl "180+1"]
[EndTime "10:40:16 PDT"]
[Termination "klimkoj won by checkmate"]

1. e4 {[%clk 0:03:00.9]} 1... c5 {[%clk 0:02:51.9]} 2. Nf3 {[%clk 0:03:01.3]}
2... Nc6 {[%clk 0:02:48.9]} 3. d4 {[%clk 0:03:01.3]} 3... cxd4 {[%clk
0:02:49.8]} 4. Nxd4 {[%clk 0:03:02.2]} 4... g6 {[%clk 0:02:50.4]} 5. Be3 {[%clk
0:03:01.1]} 5... Bg7 {[%clk 0:02:50.4]} 6. c4 {[%clk 0:03:01.1]} 6... Nf6 {[%clk
0:02:21]} 7. Nc3 {[%clk 0:02:58.1]} 7... d6 {[%clk 0:02:21.3]} 8. f3 {[%clk
0:02:58.4]} 8... O-O {[%clk 0:02:21.3]} 9. Be2 {[%clk 0:02:58.9]} 9... Nxd4
{[%clk 0:02:16.7]} 10. Bxd4 {[%clk 0:02:59.8]} 10... a5 {[%clk 0:02:17.2]} 11.
O-O {[%clk 0:02:56.3]} 11... Be6 {[%clk 0:02:14.1]} 12. Be3 {[%clk 0:02:54.6]}
12... Nd7 {[%clk 0:02:11.6]} 13. Qd2 {[%clk 0:02:53.5]} 13... a4 {[%clk
0:02:10.1]} 14. Nd5 {[%clk 0:02:53.1]} 14... Bxd5 {[%clk 0:02:09.2]} 15. cxd5
{[%clk 0:02:54]} 15... Qa5 {[%clk 0:02:04.9]} 16. Rab1 {[%clk 0:02:48.1]} 16...
Qxd2 {[%clk 0:02:01.8]} 17. Bxd2 {[%clk 0:02:49]} 17... Bd4+ {[%clk 0:02:02.2]}
18. Kh1 {[%clk 0:02:47.5]} 18... Rfc8 {[%clk 0:02:02.6]} 19. Bd3 {[%clk
0:02:38.6]} 19... Ne5 {[%clk 0:01:53.3]} 20. Be2 {[%clk 0:02:20.6]} 20... Rc2
{[%clk 0:01:47.9]} 21. Rfd1 {[%clk 0:02:20.3]} 21... Rxb2 {[%clk 0:01:47.2]} 22.
Rxb2 {[%clk 0:02:19.2]} 22... Bxb2 {[%clk 0:01:48.1]} 23. f4 {[%clk 0:02:18.1]}
23... Nd7 {[%clk 0:01:46.7]} 24. Be3 {[%clk 0:02:18]} 24... a3 {[%clk
0:01:33.5]} 25. Kg1 {[%clk 0:02:12.7]} 25... Rc8 {[%clk 0:01:33]} 26. Kf2 {[%clk
0:02:07.4]} 26... Nc5 {[%clk 0:01:07.2]} 27. Kf3 {[%clk 0:02:04.3]} 27... Na4
{[%clk 0:01:06.8]} 28. Rd2 {[%clk 0:01:57.1]} 28... Nc3 {[%clk 0:00:42.4]} 29.
Rc2 {[%clk 0:01:56.2]} 29... Rb8 {[%clk 0:00:42.5]} 30. Bc4 {[%clk 0:01:56]}
30... b5 {[%clk 0:00:42.5]} 31. Bb3 {[%clk 0:01:55.9]} 31... f5 {[%clk
0:00:24.8]} 32. e5 {[%clk 0:01:52.9]} 32... Ne4 {[%clk 0:00:23.9]} 33. Rc7
{[%clk 0:01:48.2]} 33... Re8 {[%clk 0:00:17.3]} 34. Rb7 {[%clk 0:01:40.3]} 34...
Nc3 {[%clk 0:00:16.8]} 35. g4 {[%clk 0:01:20.2]} 35... fxg4+ {[%clk 0:00:16.4]}
36. Kxg4 {[%clk 0:01:21.1]} 36... h5+ {[%clk 0:00:16.8]} 37. Kg5 {[%clk
0:01:17.2]} 37... Kf7 {[%clk 0:00:17.2]} 38. Bc2 {[%clk 0:01:01.1]} 38... Nxd5
{[%clk 0:00:12.1]} 39. Bxg6+ {[%clk 0:01:00.1]} 39... Kg7 {[%clk 0:00:11.6]} 40.
Bxe8 {[%clk 0:00:58.4]} 40... Nxe3 {[%clk 0:00:11.9]} 41. exd6 {[%clk
0:00:47.5]} 41... Bf6+ {[%clk 0:00:05.4]} 42. Kxh5 {[%clk 0:00:47.1]} 42... Kf8
{[%clk 0:00:05.8]} 43. d7 {[%clk 0:00:47.5]} 43... e6 {[%clk 0:00:05.8]} 44.
Rxb5 {[%clk 0:00:44.5]} 44... Nf5 {[%clk 0:00:05.7]} 45. Kg6 {[%clk 0:00:35.5]}
45... Bd8 {[%clk 0:00:04.9]} 46. Rxf5+ {[%clk 0:00:31.3]} 46... exf5 {[%clk
0:00:05.1]} 47. Kxf5 {[%clk 0:00:32.2]} 47... Kg7 {[%clk 0:00:04.9]} 48. h3
{[%clk 0:00:28.6]} 48... Kf8 {[%clk 0:00:05.1]} 49. Kg6 {[%clk 0:00:28.1]} 49...
Ke7 {[%clk 0:00:04]} 50. f5 {[%clk 0:00:26.8]} 50... Kf8 {[%clk 0:00:02.2]} 51.
f6 {[%clk 0:00:27.2]} 51... Bb6 {[%clk 0:00:02.3]} 52. h4 {[%clk 0:00:26.3]}
52... Kg8 {[%clk 0:00:02.2]} 53. h5 {[%clk 0:00:26.5]} 53... Kf8 {[%clk
0:00:02.6]} 54. h6 {[%clk 0:00:25.9]} 54... Bd8 {[%clk 0:00:01.2]} 55. Kf5
{[%clk 0:00:19]} 55... Bxf6 {[%clk 0:00:01.2]} 56. Kxf6 {[%clk 0:00:18.7]} 56...
Kg8 {[%clk 0:00:02.1]} 57. d8=Q {[%clk 0:00:18.6]} 57... Kh7 {[%clk 0:00:03]}
58. Bg6+ {[%clk 0:00:15.4]} 58... Kxh6 {[%clk 0:00:03.9]} 59. Qh8# {[%clk
0:00:15.4]} 1-0

[Event "*** Titled Tuesday Blitz"]
[Site "Chess.com"]
[Date "2021.04.27"]
[Round "4"]
[White "DeTimmerman"]
[Black "amintabatabaei"]
[Result "1-0"]
[WhiteElo "2805"]
[BlackElo "2980"]
[TimeControl "180+1"]
[EndTime "10:40:18 PDT"]
[Termination "DeTimmerman won by checkmate"]

1. b4 {[%clk 0:03:00.9]} 1... Nf6 {[%clk 0:02:46.2]} 2. Bb2 {[%clk 0:03:00]}
2... e6 {[%clk 0:02:46]} 3. b5 {[%clk 0:03:00.4]} 3... a6 {[%clk 0:02:45.9]} 4.
a4 {[%clk 0:03:01.3]} 4... b6 {[%clk 0:02:46.1]} 5. c4 {[%clk 0:03:01.2]} 5...
Bb7 {[%clk 0:02:46.5]} 6. e3 {[%clk 0:03:00.8]} 6... g6 {[%clk 0:02:46.4]} 7.
Nf3 {[%clk 0:03:01.2]} 7... Bg7 {[%clk 0:02:47]} 8. Be2 {[%clk 0:03:01.5]} 8...
O-O {[%clk 0:02:47.7]} 9. O-O {[%clk 0:03:01.6]} 9... d6 {[%clk 0:02:46.7]} 10.
d4 {[%clk 0:03:01.8]} 10... Ne4 {[%clk 0:02:45.5]} 11. Nc3 {[%clk 0:03:01.6]}
11... Nxc3 {[%clk 0:02:45.2]} 12. Bxc3 {[%clk 0:03:02.5]} 12... a5 {[%clk
0:02:42.8]} 13. Nd2 {[%clk 0:03:02.4]} 13... Nd7 {[%clk 0:02:36.7]} 14. Bf3
{[%clk 0:03:01.9]} 14... Qc8 {[%clk 0:02:36.7]} 15. Bxb7 {[%clk 0:02:57.8]}
15... Qxb7 {[%clk 0:02:37.6]} 16. Rc1 {[%clk 0:02:58.2]} 16... f5 {[%clk
0:02:36]} 17. Qf3 {[%clk 0:02:55.8]} 17... Qxf3 {[%clk 0:02:35.7]} 18. gxf3
{[%clk 0:02:56.7]} 18... g5 {[%clk 0:02:32]} 19. Rfd1 {[%clk 0:02:55.8]} 19...
h5 {[%clk 0:02:31.8]} 20. Kf1 {[%clk 0:02:55.8]} 20... g4 {[%clk 0:02:31.7]} 21.
Ke2 {[%clk 0:02:49.2]} 21... Kf7 {[%clk 0:02:31.9]} 22. h3 {[%clk 0:02:46]}
22... gxf3+ {[%clk 0:01:50.8]} 23. Nxf3 {[%clk 0:02:46.9]} 23... Bf6 {[%clk
0:01:51.7]} 24. Rg1 {[%clk 0:02:41.7]} 24... Rg8 {[%clk 0:01:51.1]} 25. h4
{[%clk 0:02:41.8]} 25... Rg4 {[%clk 0:01:50.7]} 26. Ng5+ {[%clk 0:02:39.4]}
26... Ke7 {[%clk 0:01:48.5]} 27. Nf3 {[%clk 0:01:58.5]} 27... Rag8 {[%clk
0:01:46.9]} 28. Rh1 {[%clk 0:01:59]} 28... Nf8 {[%clk 0:01:24.2]} 29. c5 {[%clk
0:01:51.7]} 29... dxc5 {[%clk 0:01:15.4]} 30. dxc5 {[%clk 0:01:52.6]} 30... Rxa4
{[%clk 0:01:16]} 31. cxb6 {[%clk 0:01:50.6]} 31... cxb6 {[%clk 0:01:13.8]} 32.
Bxf6+ {[%clk 0:01:49.7]} 32... Kxf6 {[%clk 0:01:14.7]} 33. Rc6 {[%clk
0:01:49.9]} 33... Ra2+ {[%clk 0:01:12.4]} 34. Nd2 {[%clk 0:01:45]} 34... Nd7
{[%clk 0:01:09.1]} 35. Rhc1 {[%clk 0:01:36.1]} 35... Ne5 {[%clk 0:01:01.6]} 36.
R6c2 {[%clk 0:01:34.1]} 36... Rxc2 {[%clk 0:00:56.5]} 37. Rxc2 {[%clk 0:01:35]}
37... Rg4 {[%clk 0:00:53.6]} 38. f4 {[%clk 0:01:32.9]} 38... Nd7 {[%clk
0:00:51.9]} 39. Rc7 {[%clk 0:01:30.8]} 39... Rg2+ {[%clk 0:00:50]} 40. Kd1
{[%clk 0:01:23.9]} 40... Nc5 {[%clk 0:00:35.3]} 41. Nc4 {[%clk 0:01:24.1]} 41...
a4 {[%clk 0:00:35.9]} 42. Ra7 {[%clk 0:01:04]} 42... e5 {[%clk 0:00:29.8]} 43.
fxe5+ {[%clk 0:00:56.4]} 43... Ke6 {[%clk 0:00:29.5]} 44. Nxb6 {[%clk
0:00:57.3]} 44... Kxe5 {[%clk 0:00:15.4]} 45. Nc4+ {[%clk 0:00:45.5]} 45... Kd5
{[%clk 0:00:14.9]} 46. Nb6+ {[%clk 0:00:45.9]} 46... Ke5 {[%clk 0:00:10.7]} 47.
Nc4+ {[%clk 0:00:46.2]} 47... Ke4 {[%clk 0:00:11.3]} 48. Rc7 {[%clk 0:00:39.6]}
48... Nd3 {[%clk 0:00:03.5]} 49. b6 {[%clk 0:00:39.9]} 49... Nb2+ {[%clk
0:00:02.4]} 50. Nxb2 {[%clk 0:00:37.6]} 50... Rxb2 {[%clk 0:00:03.3]} 51. Rc4+
{[%clk 0:00:31.4]} 51... Kxe3 {[%clk 0:00:03.3]} 52. Rxa4 {[%clk 0:00:25.3]}
52... Rb1+ {[%clk 0:00:04]} 53. Kc2 {[%clk 0:00:25.8]} 53... Rxb6 {[%clk
0:00:04.9]} 54. Ra5 {[%clk 0:00:23.4]} 54... Rf6 {[%clk 0:00:02.8]} 55. Kd1
{[%clk 0:00:20.8]} 55... Kf2 {[%clk 0:00:03.1]} 56. Kd2 {[%clk 0:00:19.4]} 56...
Kg3 {[%clk 0:00:02.3]} 57. Ke3 {[%clk 0:00:18.9]} 57... f4+ {[%clk 0:00:03]} 58.
Ke2 {[%clk 0:00:19.2]} 58... Kxh4 {[%clk 0:00:03]} 59. Kf3 {[%clk 0:00:19.2]}
59... Kh3 {[%clk 0:00:03.2]} 60. Rxh5# {[%clk 0:00:18.2]} 1-0

[Event "*** Titled Tuesday Blitz"]
[Site "Chess.com"]
[Date "2021.04.27"]
[Round "4"]
[White "thechesscorner64"]
[Black "secretsuperstar7"]
[Result "1-0"]
[WhiteElo "2393"]
[BlackElo "2219"]
[TimeControl "180+1"]
[EndTime "10:40:20 PDT"]
[Termination "thechesscorner64 won by checkmate"]

1. e4 {[%clk 0:02:59.7]} 1... c5 {[%clk 0:02:57.5]} 2. Nf3 {[%clk 0:02:59.7]}
2... d6 {[%clk 0:02:57.3]} 3. d4 {[%clk 0:02:59.3]} 3... cxd4 {[%clk 0:02:57.6]}
4. Nxd4 {[%clk 0:02:57.3]} 4... Nf6 {[%clk 0:02:57.3]} 5. Nc3 {[%clk 0:02:57.6]}
5... Nc6 {[%clk 0:02:56.8]} 6. Bg5 {[%clk 0:02:56.5]} 6... e6 {[%clk 0:02:56.2]}
7. Qd2 {[%clk 0:02:56.5]} 7... a6 {[%clk 0:02:46]} 8. O-O-O {[%clk 0:02:54.9]}
8... Bd7 {[%clk 0:02:45.5]} 9. f3 {[%clk 0:02:54.3]} 9... Qc7 {[%clk 0:02:43.5]}
10. Be3 {[%clk 0:02:54]} 10... b5 {[%clk 0:02:32.3]} 11. g4 {[%clk 0:02:52]}
11... Nxd4 {[%clk 0:02:06.5]} 12. Qxd4 {[%clk 0:02:49.1]} 12... Bc6 {[%clk
0:02:01]} 13. Qb6 {[%clk 0:02:42.1]} 13... Qxb6 {[%clk 0:01:52.4]} 14. Bxb6
{[%clk 0:02:43]} 14... Nd7 {[%clk 0:01:52.6]} 15. Bd4 {[%clk 0:02:41.6]} 15...
Ne5 {[%clk 0:01:49.1]} 16. Be2 {[%clk 0:02:36.5]} 16... b4 {[%clk 0:01:32.6]}
17. Nb1 {[%clk 0:02:36]} 17... Be7 {[%clk 0:01:19.8]} 18. Nd2 {[%clk 0:02:31.3]}
18... a5 {[%clk 0:01:14.6]} 19. f4 {[%clk 0:02:21.9]} 19... Ng6 {[%clk
0:01:11.5]} 20. Rhf1 {[%clk 0:02:19.2]} 20... e5 {[%clk 0:01:09.2]} 21. fxe5
{[%clk 0:01:55.5]} 21... dxe5 {[%clk 0:01:08.5]} 22. Be3 {[%clk 0:01:54.2]}
22... O-O {[%clk 0:00:59.7]} 23. Bc4 {[%clk 0:01:53.3]} 23... a4 {[%clk
0:00:52.7]} 24. Kb1 {[%clk 0:01:45.8]} 24... Rad8 {[%clk 0:00:43.2]} 25. Bb6
{[%clk 0:01:35]} 25... Rd7 {[%clk 0:00:36.4]} 26. b3 {[%clk 0:00:53]} 26... a3
{[%clk 0:00:23.3]} 27. Be3 {[%clk 0:00:44.5]} 27... Nf4 {[%clk 0:00:11.3]} 28.
Kc1 {[%clk 0:00:34.8]} 28... Bg5 {[%clk 0:00:10.1]} 29. Rf3 {[%clk 0:00:15.7]}
29... Ne2+ {[%clk 0:00:09.9]} 30. Bxe2 {[%clk 0:00:15.3]} 30... Bh4 {[%clk
0:00:04.7]} 31. Bd3 {[%clk 0:00:09]} 31... Rfd8 {[%clk 0:00:04]} 32. Nc4 {[%clk
0:00:08.4]} 32... Bxe4 {[%clk 0:00:03.2]} 33. Rh3 {[%clk 0:00:08.6]} 33... Bxd3
{[%clk 0:00:02]} 34. Rxd3 {[%clk 0:00:07.4]} 34... Bf6 {[%clk 0:00:02.7]} 35.
Rxd7 {[%clk 0:00:06.6]} 35... Rxd7 {[%clk 0:00:03.6]} 36. Rf3 {[%clk 0:00:06.1]}
36... e4 {[%clk 0:00:03.5]} 37. Rf5 {[%clk 0:00:05.9]} 37... Bb2+ {[%clk
0:00:03]} 38. Nxb2 {[%clk 0:00:03.9]} 38... Rd1+ {[%clk 0:00:03.2]} 39. Nxd1
{[%clk 0:00:04.2]} 39... Kf8 {[%clk 0:00:01.1]} 40. Rb5 {[%clk 0:00:05.1]} 40...
Ke7 {[%clk 0:00:01.5]} 41. Rxb4 {[%clk 0:00:06]} 41... Kf6 {[%clk 0:00:02.1]}
42. Rxe4 {[%clk 0:00:06.3]} 42... g6 {[%clk 0:00:01.3]} 43. h4 {[%clk
0:00:06.6]} 43... Kg7 {[%clk 0:00:01.9]} 44. Ra4 {[%clk 0:00:06.7]} 44... h5
{[%clk 0:00:02.8]} 45. g5 {[%clk 0:00:06.6]} 45... Kf8 {[%clk 0:00:03]} 46. Rxa3
{[%clk 0:00:06.4]} 46... Ke7 {[%clk 0:00:03.6]} 47. Ra6 {[%clk 0:00:06.8]} 47...
Kd7 {[%clk 0:00:03.7]} 48. Rf6 {[%clk 0:00:06.9]} 48... Kc7 {[%clk 0:00:04.2]}
49. a4 {[%clk 0:00:07.1]} 49... Kb7 {[%clk 0:00:04.3]} 50. a5 {[%clk 0:00:08]}
50... Ka8 {[%clk 0:00:04.5]} 51. b4 {[%clk 0:00:08.9]} 51... Kb8 {[%clk
0:00:04.7]} 52. Nf2 {[%clk 0:00:09.8]} 52... Ka8 {[%clk 0:00:05.1]} 53. Ne4
{[%clk 0:00:10.7]} 53... Kb8 {[%clk 0:00:05.6]} 54. Nd6 {[%clk 0:00:11.6]} 54...
Ka8 {[%clk 0:00:06]} 55. Nxf7 {[%clk 0:00:12.5]} 55... Kb7 {[%clk 0:00:06.3]}
56. Ne5 {[%clk 0:00:13.4]} 56... Ka8 {[%clk 0:00:06.6]} 57. Nxg6 {[%clk
0:00:14.3]} 57... Kb8 {[%clk 0:00:06.9]} 58. Nf4 {[%clk 0:00:15.2]} 58... Ka8
{[%clk 0:00:07.5]} 59. Nxh5 {[%clk 0:00:16.1]} 59... Kb8 {[%clk 0:00:08]} 60. g6
{[%clk 0:00:17]} 60... Ka8 {[%clk 0:00:08.6]} 61. Rf7 {[%clk 0:00:17.6]} 61...
Kb8 {[%clk 0:00:08.4]} 62. g7 {[%clk 0:00:18.5]} 62... Kc8 {[%clk 0:00:08.8]}
63. g8=Q# {[%clk 0:00:19.4]} 1-0